fUST/lending_fUST_20251007
["ID","MTS","AMOUNT","RATE_DAILY","PERIOD"]
[389783970,1759847439057,-1000.0,0.0001888,2]
[389783972,1759847439067,-1000.0,0.0001888,2]
[389783974,1759847439077,-151.0,0.000189,2]
[389783976,1759847439087,-1000.0,0.00018904,2]
[389784001,1759847439337,-159.88976109,0.00018985,2]
[389784003,1759847439353,-1330.0,0.00018985,2]
[389784005,1759847439363,-185.3456761,0.00019,2]
[389784008,1759847439373,-234.20938206,0.0001904,2]
[389784009,1759847439383,-160.0,0.0001904,2]
[389784012,1759847439393,-402.02512307,0.0001904,2]
[389784014,1759847439403,-533.72506543,0.0001904,2]
[389784017,1759847439412,-762.76,0.00019051,3]
[389784019,1759847439422,-381.38,0.00019051,3]
[389784021,1759847439432,-7654.60951866,0.00019063,7]
[389784023,1759847439441,-151.0,0.000191,2]
[389784025,1759847439450,-160.0,0.00019127,2]
[389784027,1759847439459,-506.42773636,0.00019158,2]
[389784030,1759847439472,-500.0,0.00019178,2]
[389784032,1759847439482,-1000.0,0.00019178,2]
[389784034,1759847439491,-151.36892429,0.00019178,2]
[389784036,1759847439501,-3307.59957628,0.00019178,2]
[389784038,1759847439510,-151.0,0.000192,2]
[389784040,1759847439520,-1224.9295295,0.00019231,2]
[389784042,1759847439529,-1330.0,0.00019259,2]
[389784044,1759847439538,-420.0,0.00019288,2]
[389784046,1759847439548,-420.0,0.00019288,2]
[389784048,1759847439560,-420.0,0.00019288,2]
[389784050,1759847439569,-300.0,0.00019315,2]
[389784052,1759847439578,-1500.0,0.00019346,2]
[389784054,1759847439587,-1500.0,0.00019346,2]
[389784056,1759847439597,-1680.0,0.00019383,2]
[389784058,1759847439606,-345.38092657,0.00019427,2]
[389784060,1759847439615,-1500.0,0.00019427,2]
[389784062,1759847439624,-1000.0,0.00019427,2]
[389784064,1759847439633,-261.43381594,0.00019427,2]
[389784066,1759847439642,-1500.0,0.00019427,2]
[389784067,1759847439651,-1500.0,0.00019427,2]
[389784069,1759847439660,-1500.0,0.00019427,2]
[389784071,1759847439669,-557.35058289,0.00019452,2]
[389784073,1759847439678,-1000.0,0.00019452,2]
[389784075,1759847439687,-528.52332229,0.00019452,2]
[389784077,1759847439696,-301.60032361,0.00019487,2]
[389784079,1759847439705,-168.01695144,0.00019491,2]
[389784081,1759847439713,-151.0,0.000195,2]
[389784083,1759847439723,-1330.0,0.00019533,2]
[389784085,1759847439731,-151.0,0.000196,2]
[389784087,1759847439740,-959.0,0.00019634,2]
[389784089,1759847439749,-959.0,0.00019638,2]
[389784091,1759847439758,-598.44763185,0.00019661,2]
[389784093,1759847439767,-260.0,0.00019675,2]
[389784095,1759847439776,-151.0,0.000197,2]
[389784097,1759847439786,-1000.0,0.00019726,2]
[389784099,1759847439794,-980.0,0.00019765,2]
[389784101,1759847439807,-2158.0,0.00019765,2]
[389784103,1759847439816,-630.0,0.00019765,2]
[389784105,1759847439825,-411.0,0.00019765,2]
[389784107,1759847439834,-1330.0,0.00019807,2]
[389784109,1759847439843,-959.0,0.00019827,2]
[389784111,1759847439852,-720.0,0.00019848,2]
[389784113,1759847439861,-959.0,0.00019865,2]
[389784115,1759847439871,-2000.0,0.00019894,2]
[389784117,1759847439879,-2000.0,0.00019894,2]
[389784119,1759847439889,-959.0,0.00019952,2]
[389784121,1759847439898,-959.0,0.00019969,2]
[389784123,1759847439908,-2000.0,0.00019975,2]
[389784125,1759847439917,-2000.0,0.00019975,2]
[389784127,1759847439926,-2000.0,0.00019975,2]
[389784129,1759847439935,-2000.0,0.00019975,2]
[389784131,1759847439944,-303.04464238,0.0002,2]
[389784133,1759847439953,-1000.0,0.0002,2]
[389784135,1759847439962,-234.05807603,0.0002,2]
[389784136,1759847439972,-14517.33720406,0.0002,2]
[389784138,1759847439981,-40270.8605035,0.0002,20]
[389784140,1759847439990,-366.95511062,0.0002,2]
[389784142,1759847439999,-23000.0,0.0002,2]
[389784144,1759847440009,-17574.70039574,0.0002,2]
[389784146,1759847440018,-79221.96,0.0002,2]
[389784148,1759847440028,-180.01980218,0.0002,2]
[389784150,1759847440037,-1000.0,0.0002,4]
[389784152,1759847440047,-2200.737,0.00020027,2]
[389784154,1759847440059,-959.0,0.0002004,2]
[389784156,1759847440068,-1330.0,0.00020081,2]
[389784158,1759847440077,-151.0,0.000201,3]
[389784160,1759847440087,-151.0,0.000201,3]
[389784162,1759847440096,-959.0,0.00020106,2]
[389784164,1759847440106,-959.0,0.00020144,2]
[389784166,1759847440116,-634.367813,0.00020187,2]
[389784170,1759847440125,-959.0,0.0002019,2]
[389784173,1759847440134,-151.0,0.000202,3]
[389784176,1759847440143,-152.159177,0.0002022,19]
[389784179,1759847440154,-152.159177,0.0002022,19]
[389784181,1759847440164,-152.159177,0.0002022,19]
[389784183,1759847440173,-360.0,0.00020223,2]
[389784185,1759847440183,-959.0,0.00020233,2]
[389784187,1759847440193,-173.09530926,0.0002024,7]
[389784189,1759847440203,-983.78222454,0.00020273,2]
[389784191,1759847440212,-1837.39429425,0.00020299,2]
[389784193,1759847440222,-1330.0,0.00020355,2]
[389784195,1759847440231,-959.0,0.00020417,2]
[389784197,1759847440242,-2500.0,0.00020442,2]
[389784199,1759847440251,-2500.0,0.00020442,2]
[389784201,1759847440260,-2000.0,0.000205,2]
[389784203,1759847440269,-959.0,0.00020512,2]
[389784205,1759847440278,-163.56193443,0.00020521,3]
[389784207,1759847440287,-1124.02490268,0.00020523,2]
[389784209,1759847440297,-2500.0,0.00020523,2]
[389784211,1759847440311,-2500.0,0.00020523,2]
[389784213,1759847440320,-2500.0,0.00020523,2]
[389784215,1759847440330,-959.0,0.00020553,2]
[389784217,1759847440338,-959.0,0.00020585,2]
[389784219,1759847440347,-337.689,0.00020595,2]
[389784221,1759847440356,-179.565,0.0002061,2]
[389784223,1759847440365,-1372.26531713,0.0002061,2]
[389784225,1759847440374,-959.0,0.00020624,2]
[389784226,1759847440383,-1330.0,0.00020629,2]
[389784228,1759847440393,-959.0,0.00020672,2]
[389784230,1759847440403,-151.0,0.000207,4]
[389784232,1759847440412,-151.0,0.000207,4]
[389784234,1759847440421,-506.42773636,0.00020735,2]
[389784236,1759847440430,-959.0,0.00020762,2]
[389784238,1759847440439,-174.685,0.00020765,2]
[389784240,1759847440448,-460.0,0.00020771,2]
[389784242,1759847440457,-959.0,0.00020784,2]
[389784243,1759847440469,-151.0,0.000208,4]
[389784245,1759847440478,-1708.08266431,0.0002085,2]
[389784247,1759847440487,-253.09677656,0.000209,2]
[389784249,1759847440497,-1330.0,0.00020903,2]
[389784251,1759847440507,-3000.0,0.0002099,2]
[389784253,1759847440516,-3000.0,0.0002099,2]
[389784255,1759847440525,-10000.0,0.00021,5]
[389784257,1759847440534,-273.56835318,0.00021,2]
[389784259,1759847440546,-204.65924008,0.00021,2]
[389784261,1759847440558,-959.0,0.00021027,2]
[389784263,1759847440567,-169.0,0.00021053,2]
[389784265,1759847440576,-587.0,0.00021053,2]
[389784267,1759847440585,-587.0,0.00021053,2]
[389784269,1759847440595,-192.9352527,0.00021062,2]
[389784271,1759847440604,-3000.0,0.00021071,2]
[389784273,1759847440613,-3000.0,0.00021071,2]
[389784275,1759847440622,-3000.0,0.00021071,2]
[389784276,1759847440631,-1330.0,0.00021177,2]
[389784278,1759847440640,-151.0,0.000212,3]
[389784280,1759847440649,-151.0,0.000212,3]
[389784282,1759847440659,-959.0,0.00021258,2]
[389784284,1759847440669,-2351.0,0.0002126,2]
[389784286,1759847440678,-959.0,0.00021309,2]
[389784288,1759847440687,-560.0,0.00021319,2]
[389784291,1759847440698,-500.0,0.00021334,2]
[389784292,1759847440708,-204.0,0.0002134,2]
[389784294,1759847440719,-12500.0,0.00021345,7]
[389784296,1759847440729,-2449.85905901,0.00021367,2]
[389784298,1759847440739,-959.0,0.00021382,2]
[389784300,1759847440748,-151.0,0.000214,3]
[389784302,1759847440757,-402.02512307,0.000214,7]
[389784304,1759847440766,-533.72506543,0.000214,7]
[389784306,1759847440775,-160.0,0.000214,7]
[389784308,1759847440784,-152.159177,0.0002141,3]
[389784310,1759847440793,-157.29,0.00021415,2]
[389784312,1759847440804,-500.0,0.00021416,2]
[389784314,1759847440813,-1330.0,0.00021451,2]
[389784316,1759847440822,-2000.0,0.000215,2]
[389784318,1759847440832,-12685.86082688,0.000215,2]
[389784320,1759847440842,-200.0,0.0002151,2]
[389784322,1759847440851,-3500.0,0.00021538,2]
[389784324,1759847440860,-3500.0,0.00021538,2]
[389784326,1759847440869,-32617.2612213,0.00021577,2]
[389784328,1759847440878,-959.0,0.0002158,2]
[389784330,1759847440887,-2000.0,0.000216,2]
[389784331,1759847440896,-2000.0,0.000216,2]
[389784333,1759847440905,-2000.0,0.000216,2]
[389784335,1759847440915,-151.0,0.000216,4]
[389784337,1759847440924,-172.0,0.00021616,5]
[389784339,1759847440933,-3500.0,0.00021619,2]
[389784341,1759847440942,-3500.0,0.00021619,2]
[389784343,1759847440952,-3500.0,0.00021619,2]
[389784346,1759847440962,-329.0,0.00021621,2]
[389784347,1759847440971,-329.0,0.00021621,2]
[389784349,1759847440981,-329.0,0.00021621,2]
[389784351,1759847440991,-329.0,0.00021621,2]
[389784353,1759847441001,-329.0,0.00021621,2]
[389784355,1759847441011,-329.0,0.00021621,2]
[389784357,1759847441021,-329.0,0.00021621,2]
[389784359,1759847441031,-329.0,0.00021621,2]
[389784361,1759847441040,-161.52172655,0.00021621,2]
[389784363,1759847441049,-358.07527654,0.00021621,2]
[389784365,1759847441061,-1432.30110616,0.00021621,2]
[389784367,1759847441071,-3222.67748886,0.00021621,2]
[389784369,1759847441080,-579.87466385,0.00021621,2]
[389784371,1759847441089,-5723.47522022,0.00021621,2]
[389784373,1759847441098,-1000.0,0.00021621,2]
[389784375,1759847441107,-1000.0,0.00021621,2]
[389784377,1759847441116,-1000.0,0.00021621,2]
[389784379,1759847441125,-1000.0,0.00021621,2]
[389784381,1759847441134,-1000.0,0.00021621,2]
[389784383,1759847441142,-1000.0,0.00021621,2]
[389784385,1759847441151,-1000.0,0.00021621,2]
[389784387,1759847441161,-1000.0,0.00021621,2]
[389784389,1759847441169,-1000.0,0.00021621,2]
[389784391,1759847441178,-1000.0,0.00021621,2]
[389784393,1759847441187,-1000.0,0.00021621,2]
[389784394,1759847441196,-1000.0,0.00021621,2]
[389784396,1759847441205,-1000.0,0.00021621,2]
[389784398,1759847441214,-1000.0,0.00021621,2]
[389784400,1759847441223,-1000.0,0.00021621,2]
[389784402,1759847441232,-952.81151107,0.00021621,2]
[389784404,1759847441241,-164.66387778,0.00021621,2]
[389784406,1759847441251,-959.0,0.00021655,2]
[389784408,1759847441260,-404.84459995,0.00021695,2]
[389784410,1759847441269,-151.0,0.000217,4]
[389784412,1759847441278,-200.0,0.0002171,2]
[389784414,1759847441286,-1330.0,0.00021725,2]
[389784416,1759847441296,-500.0,0.00021767,2]
[389784418,1759847441308,-151.0,0.000218,3]
[389784420,1759847441317,-600.0,0.00021804,2]
[389784422,1759847441327,-200.0,0.0002181,2]
[389784424,1759847441337,-864.0,0.00021833,20]
[389784426,1759847441346,-660.0,0.00021867,2]
[389784428,1759847441355,-189.5827141,0.00021884,2]
[389784430,1759847441364,-189.5827141,0.00021884,2]
[389784432,1759847441373,-177.14614789,0.000219,2]
[389784434,1759847441382,-500.0,0.00021909,2]
[389784436,1759847441390,-200.0,0.0002191,2]
[389784438,1759847441399,-152.0,0.00021918,2]
[389784440,1759847441408,-152.0,0.00021918,2]
[389784441,1759847441417,-152.0,0.00021918,2]
[389784443,1759847441426,-152.0,0.00021918,2]
[389784445,1759847441435,-152.0,0.00021918,2]
[389784447,1759847441444,-152.0,0.00021918,2]
[389784449,1759847441453,-152.0,0.00021918,2]
[389784451,1759847441464,-152.0,0.00021918,2]
[389784453,1759847441473,-152.0,0.00021918,2]
[389784455,1759847441482,-152.0,0.00021918,2]
[389784457,1759847441492,-152.0,0.00021918,2]
[389784459,1759847441500,-152.0,0.00021918,2]
[389784461,1759847441509,-152.0,0.00021918,2]
[389784463,1759847441518,-215.33827402,0.00021918,2]
[389784465,1759847441528,-175.0,0.00021918,2]
[389784467,1759847441537,-175.0,0.00021918,2]
[389784469,1759847441547,-175.0,0.00021918,2]
[389784471,1759847441559,-152.0,0.00021918,2]
[389784473,1759847441568,-152.0,0.00021918,2]
[389784475,1759847441577,-152.0,0.00021918,2]
[389784477,1759847441586,-152.0,0.00021918,2]
[389784479,1759847441595,-152.0,0.00021918,2]
[389784481,1759847441604,-152.0,0.00021918,2]
[389784483,1759847441614,-152.0,0.00021918,2]
[389784485,1759847441623,-152.0,0.00021918,2]
[389784487,1759847441632,-152.0,0.00021918,2]
[389784489,1759847441641,-152.0,0.00021918,2]
[389784491,1759847441650,-152.0,0.00021918,2]
[389784493,1759847441660,-152.0,0.00021918,2]
[389784495,1759847441669,-152.0,0.00021918,2]
[389784497,1759847441678,-152.0,0.00021918,2]
[389784499,1759847441687,-152.0,0.00021918,2]
[389784501,1759847441697,-152.0,0.00021918,2]
[389784503,1759847441707,-152.0,0.00021918,2]
[389784505,1759847441717,-152.0,0.00021918,2]
[389784507,1759847441726,-152.0,0.00021918,2]
[389784508,1759847441734,-152.0,0.00021918,2]
[389784510,1759847441743,-152.0,0.00021918,2]
[389784512,1759847441752,-152.0,0.00021918,2]
[389784514,1759847441761,-152.0,0.00021918,2]
[389784516,1759847441771,-152.0,0.00021918,2]
[389784518,1759847441779,-152.0,0.00021918,2]
[389784520,1759847441790,-152.0,0.00021918,2]
[389784522,1759847441799,-152.0,0.00021918,2]
[389784524,1759847441810,-152.0,0.00021918,2]
[389784526,1759847441820,-152.0,0.00021918,2]
[389784528,1759847441829,-152.0,0.00021918,2]
[389784530,1759847441838,-152.0,0.00021918,2]
[389784532,1759847441847,-152.0,0.00021918,2]
[389784534,1759847441857,-152.0,0.00021918,2]
[389784536,1759847441866,-152.0,0.00021918,2]
[389784538,1759847441876,-174.8657094,0.00021918,2]
[389784540,1759847441885,-36953.97279197,0.00021965,2]
[389784542,1759847441894,-500.0,0.00021973,2]
[389784544,1759847441903,-500.0,0.00021973,2]
[389784546,1759847441912,-500.0,0.00021973,2]
[389784548,1759847441922,-500.0,0.00021973,2]
[389784550,1759847441931,-500.0,0.00021973,2]
[389784552,1759847441940,-176.9270828,0.00021973,2]
[389784554,1759847441950,-500.0,0.00021973,2]
[389784556,1759847441959,-500.0,0.00021973,2]
[389784558,1759847441968,-500.0,0.00021973,2]
[389784560,1759847441977,-200.45389814,0.00021973,2]
[389784562,1759847441986,-231.36839168,0.00021973,2]
[389784564,1759847441995,-500.0,0.00021973,2]
[389784566,1759847442004,-500.0,0.00021973,2]
[389784568,1759847442014,-500.0,0.00021973,2]
[389784570,1759847442023,-500.0,0.00021973,2]
[389784572,1759847442032,-500.0,0.00021973,2]
[389784574,1759847442041,-200.61392995,0.00021973,2]
[389784576,1759847442052,-500.0,0.00021973,2]
[389784578,1759847442061,-500.0,0.00021973,2]
[389784580,1759847442070,-500.0,0.00021973,2]
[389784582,1759847442079,-500.0,0.00021973,2]
[389784584,1759847442088,-500.0,0.00021973,2]
[389784586,1759847442097,-200.19353786,0.00021973,2]
[389784588,1759847442106,-500.0,0.00021973,2]
[389784590,1759847442115,-500.0,0.00021973,2]
[389784592,1759847442125,-150.56950836,0.00021973,2]
[389784594,1759847442134,-302.09070511,0.00021973,2]
[389784596,1759847442144,-500.0,0.00021973,2]
[389784597,1759847442154,-500.0,0.00021973,2]
[389784599,1759847442164,-500.0,0.00021973,2]
[389784601,1759847442174,-500.0,0.00021973,2]
[389784603,1759847442183,-500.0,0.00021973,2]
[389784605,1759847442192,-500.0,0.00021973,2]
[389784607,1759847442202,-500.0,0.00021973,2]
[389784609,1759847442212,-291.31504269,0.00021973,2]
[389784611,1759847442221,-1330.0,0.00021999,2]
[389784613,1759847442231,-19361.94710176,0.00021999,2]
[389784615,1759847442240,-500.0,0.00021999,2]
[389784617,1759847442249,-337.92078467,0.00022,2]
[389784619,1759847442259,-2000.0,0.00022,2]
[389784621,1759847442268,-100110.16958302,0.00022,5]
[389784623,1759847442277,-286.30950538,0.00022,7]
[389784625,1759847442286,-151.0,0.00022,4]
[389784627,1759847442296,-1000.0,0.00022,6]
[389784629,1759847442308,-151.0,0.00022,7]
[389784631,1759847442317,-151.0,0.00022,7]
[389784632,1759847442327,-151.0,0.00022,7]
[389784633,1759847442337,-151.0,0.00022,7]
[389784634,1759847442346,-151.0,0.00022,7]
[389784635,1759847442355,-151.0,0.00022,7]
[389784636,1759847442364,-10000.0,0.00022,7]
[389784637,1759847442373,-151.0,0.00022,7]
[389784639,1759847442382,-151.0,0.00022,7]
[389784640,1759847442391,-10000.0,0.00022,7]
[389784641,1759847442400,-10000.0,0.00022,7]
[389784642,1759847442409,-151.0,0.00022,7]
[389784643,1759847442418,-190.443695,0.00022,7]
[389784644,1759847442428,-10000.0,0.00022,7]
[389784645,1759847442437,-1554.762305,0.00022,7]
[389784646,1759847442445,-151.0,0.00022,7]
[389784647,1759847442455,-190.443695,0.00022,7]
[389784648,1759847442466,-1554.762305,0.00022,7]
[389784649,1759847442476,-4859.516855,0.00022,7]
[389784650,1759847442485,-151.0,0.00022,7]
[389784651,1759847442494,-190.443695,0.00022,7]
[389784652,1759847442503,-1554.762305,0.00022,7]
[389784653,1759847442513,-188.823648,0.00022,7]
[389784654,1759847442522,-151.0,0.00022,7]
[389784655,1759847442532,-190.443695,0.00022,7]
[389784656,1759847442542,-1554.762305,0.00022,7]
[389784657,1759847442552,-151.0,0.00022,7]
[389784658,1759847442562,-151.0,0.00022,7]
[389784659,1759847442571,-151.0,0.00022,7]
[389784660,1759847442579,-151.0,0.00022,7]
[389784661,1759847442589,-151.0,0.00022,7]
[389784662,1759847442598,-153.74492,0.00022,7]
[389784663,1759847442608,-402.02512307,0.00022,7]
[389784664,1759847442617,-533.72506543,0.00022,7]
[389784666,1759847442626,-320.0,0.00022,7]
[389784668,1759847442636,-320.0,0.00022,7]
[389784670,1759847442645,-320.0,0.00022,7]
[389784672,1759847442655,-320.0,0.00022,7]
[389784674,1759847442664,-151.0,0.00022,7]
[389784676,1759847442674,-151.0,0.00022,7]
[389784678,1759847442683,-151.0,0.00022,7]
[389784680,1759847442693,-151.0,0.00022,7]
[389784682,1759847442702,-151.0,0.00022,7]
[389784684,1759847442712,-177.44003,0.00022,7]
[389784686,1759847442722,-151.0,0.00022,7]
[389784688,1759847442733,-213.989612,0.00022,7]
[389784690,1759847442742,-600.0,0.00022031,2]
[389784692,1759847442749,-500.0,0.00022058,2]
[389784693,1759847442757,-4000.0,0.00022086,2]
[389784696,1759847442765,-1036.05707338,0.00022086,2]
[389784698,1759847442773,-200.0,0.000221,2]
[389784700,1759847442782,-1000.0,0.00022102,5]
[389784702,1759847442790,-500.0,0.00022114,2]
[389784704,1759847442798,-500.0,0.00022114,2]
[389784706,1759847442810,-500.0,0.00022114,2]
[389784708,1759847442819,-500.0,0.00022114,2]
[389784710,1759847442829,-2317.17915675,0.00022132,2]
[389784712,1759847442838,-569.27703144,0.00022167,2]
[389784714,1759847442850,-1007.61206826,0.00022167,2]
[389784716,1759847442860,-4000.0,0.00022167,2]
[389784718,1759847442869,-341.61620481,0.00022177,2]
[389784720,1759847442879,-500.0,0.00022177,2]
[389784723,1759847442889,-482.82349399,0.00022177,2]
[389784725,1759847442898,-152.159177,0.0002219,3]
[389784727,1759847442907,-151.0,0.000222,7]
[389784729,1759847442916,-160.0,0.00022224,4]
[389784731,1759847442925,-1330.0,0.00022273,2]
[389784733,1759847442934,-151.0,0.000223,5]
[389784735,1759847442943,-500.0,0.00022309,2]
[389784737,1759847442952,-500.0,0.00022309,2]
[389784739,1759847442961,-255.66736951,0.00022309,2]
[389784741,1759847442970,-500.0,0.00022309,2]
[389784743,1759847442979,-500.0,0.00022309,2]
[389784745,1759847442988,-161.55304732,0.00022309,2]
[389784746,1759847442998,-500.0,0.00022309,2]
[389784748,1759847443007,-500.0,0.00022309,2]
[389784750,1759847443017,-500.0,0.00022309,2]
[389784753,1759847443027,-500.0,0.00022309,2]
[389784754,1759847443036,-500.0,0.00022309,2]
[389784756,1759847443048,-500.0,0.00022309,2]
[389784758,1759847443060,-449.72422841,0.00022309,2]
[389784760,1759847443070,-500.0,0.00022309,2]
[389784762,1759847443080,-527.12120474,0.00022309,2]
[389784764,1759847443089,-500.0,0.00022309,2]
[389784766,1759847443098,-500.0,0.00022309,2]
[389784768,1759847443108,-500.0,0.00022309,2]
[389784770,1759847443117,-500.0,0.00022309,2]
[389784772,1759847443127,-500.0,0.00022309,2]
[389784775,1759847443136,-500.0,0.00022309,2]
[389784777,1759847443145,-500.0,0.00022309,2]
[389784779,1759847443155,-500.0,0.00022309,2]
[389784781,1759847443165,-500.0,0.00022309,2]
[389784783,1759847443175,-517.91923232,0.00022309,2]
[389784785,1759847443184,-500.0,0.00022309,2]
[389784787,1759847443193,-500.0,0.00022309,2]
[389784789,1759847443203,-500.0,0.00022309,2]
[389784791,1759847443212,-500.0,0.00022309,2]
[389784793,1759847443222,-510.46914813,0.00022309,2]
[389784795,1759847443231,-500.0,0.00022309,2]
[389784797,1759847443241,-627.73257475,0.00022309,2]
[389784816,1759847443251,-163.92239522,0.00022309,2]
[389784820,1759847443454,-500.0,0.00022309,2]
[389784822,1759847443466,-203.67230258,0.00022309,2]
[389784824,1759847443476,-500.0,0.00022309,2]
[389784825,1759847443486,-500.0,0.00022309,2]
[389784827,1759847443496,-500.0,0.00022309,2]
[389784829,1759847443505,-170.92839409,0.00022309,2]
[389784831,1759847443515,-500.0,0.00022309,2]
[389784833,1759847443524,-500.0,0.00022309,2]
[389784835,1759847443533,-500.0,0.00022309,2]
[389784837,1759847443543,-500.0,0.00022309,2]
[389784839,1759847443552,-500.0,0.00022309,2]
[389784841,1759847443561,-500.0,0.00022309,2]
[389784842,1759847443571,-500.0,0.00022309,2]
[389784844,1759847443581,-506.42773636,0.00022312,2]
[389784846,1759847443590,-500.0,0.00022335,2]
[389784848,1759847443601,-760.0,0.00022415,2]
[389784850,1759847443611,-3062.32382376,0.00022435,2]
[389784852,1759847443621,-293.85068442,0.0002247,2]
[389784854,1759847443631,-431.83423994,0.00022496,2]
[389784856,1759847443640,-1019.28476954,0.000225,2]
[389784858,1759847443650,-1094.8,0.000225,2]
[389784860,1759847443660,-1000.0,0.000225,4]
[389784862,1759847443669,-200.0,0.0002251,2]
[389784864,1759847443679,-1000.0,0.00022521,2]
[389784866,1759847443688,-1000.0,0.00022521,2]
[389784868,1759847443697,-1000.0,0.00022521,2]
[389784870,1759847443706,-1000.0,0.00022521,2]
[389784872,1759847443716,-1000.0,0.00022521,2]
[389784874,1759847443725,-1000.0,0.00022521,2]
[389784876,1759847443735,-1000.0,0.00022521,2]
[389784877,1759847443744,-258.0272099,0.00022521,2]
[389784879,1759847443754,-420.71384306,0.00022521,2]
[389784881,1759847443764,-1000.0,0.00022521,2]
[389784883,1759847443773,-1000.0,0.00022521,2]
[389784885,1759847443783,-263.52879984,0.00022521,2]
[389784887,1759847443792,-603.92426928,0.00022521,2]
[389784889,1759847443802,-1000.0,0.00022521,2]
[389784891,1759847443812,-1000.0,0.00022521,2]
[389784893,1759847443821,-1000.0,0.00022521,2]
[389784895,1759847443830,-1000.0,0.00022521,2]
[389784897,1759847443840,-1000.0,0.00022521,2]
[389784899,1759847443852,-1000.0,0.00022521,2]
[389784901,1759847443862,-1000.0,0.00022521,2]
[389784903,1759847443872,-1000.0,0.00022521,2]
[389784905,1759847443881,-1000.0,0.00022521,2]
[389784907,1759847443890,-1000.0,0.00022521,2]
[389784909,1759847443900,-587.52997671,0.00022521,2]
[389784911,1759847443909,-193.22369181,0.00022521,2]
[389784913,1759847443919,-1000.0,0.00022521,2]
[389784915,1759847443928,-151.0,0.00022521,7]
[389784917,1759847443937,-151.0,0.00022521,7]
[389784919,1759847443947,-151.0,0.00022521,7]
[389784921,1759847443957,-400.986,0.00022521,2]
[389784923,1759847443967,-400.986,0.00022521,2]
[389784925,1759847443976,-400.986,0.00022521,2]
[389784927,1759847443985,-400.986,0.00022521,2]
[389784928,1759847443995,-151.0,0.00022521,7]
[389784930,1759847444004,-152.159037,0.00022521,7]
[389784932,1759847444013,-151.0,0.00022521,7]
[389784934,1759847444023,-300.096182,0.00022521,7]
[389784936,1759847444033,-151.0,0.00022521,7]
[389784938,1759847444042,-218.264212,0.00022521,7]
[389784940,1759847444052,-218.264212,0.00022521,7]
[389784942,1759847444061,-218.264212,0.00022521,7]
[389784944,1759847444070,-218.264212,0.00022521,7]
[389784946,1759847444079,-151.0,0.00022521,7]
[389784948,1759847444088,-1024.730886,0.00022521,7]
[389784950,1759847444097,-1024.730886,0.00022521,7]
[389784952,1759847444106,-1024.730886,0.00022521,7]
[389784954,1759847444116,-1024.730886,0.00022521,7]
[389784956,1759847444124,-432.621204,0.00022521,7]
[389784958,1759847444133,-432.621204,0.00022521,7]
[389784960,1759847444142,-432.621204,0.00022521,7]
[389784962,1759847444151,-432.621204,0.00022521,7]
[389784964,1759847444162,-151.0,0.00022521,7]
[389784966,1759847444171,-151.0,0.00022521,7]
[389784968,1759847444180,-151.0,0.00022521,7]
[389784970,1759847444190,-151.0,0.00022521,7]
[389784972,1759847444199,-158.576464,0.00022521,7]
[389784974,1759847444208,-151.0,0.00022521,7]